bitfinex/quotes_BTCUSD_20241202
["timestamp","ask_amount","ask_price","bid_price","bid_amount"]
[1733116015952,0.106231,96921.0,96920.0,0.19607898]
[1733116016151,0.083231,96921.0,96920.0,0.19607898]
[1733116016626,0.001731,96921.0,96920.0,0.19607898]
[1733116016882,0.001731,96921.0,96920.0,0.19790499]
[1733116017314,0.001731,96921.0,96920.0,0.20190499]
[1733116018192,0.023,96925.0,96921.0,0.412706]
[1733116018413,0.023,96925.0,96923.0,0.206349]
[1733116018622,0.023,96925.0,96924.0,0.10284521]
[1733116018990,0.02764341,96925.0,96924.0,0.10284521]
[1733116019392,0.02782132,96925.0,96924.0,0.10284521]
[1733116019980,0.00482132,96925.0,96924.0,0.19407898]
[1733116020409,0.00017791,96925.0,96924.0,0.19407898]
[1733116020676,0.00017791,96925.0,96924.0,0.19590499]
[1733116021073,0.00017791,96925.0,96924.0,0.19790499]
[1733116021618,0.0017302,96927.0,96925.0,0.206345]
[1733116021821,0.0017302,96927.0,96925.0,0.40224979]
[1733116022031,0.0017302,96927.0,96925.0,0.40042398]
[1733116022235,0.0017302,96927.0,96925.0,0.75042398]
[1733116022452,0.0002,96940.0,96934.0,0.29123377]
[1733116022657,0.0002,96940.0,96934.0,0.75040398]
[1733116023290,0.0002,96940.0,96934.0,1.45040398]
[1733116023732,0.0002,96940.0,96934.0,1.48158918]
[1733116023939,0.0002,96940.0,96934.0,1.45040398]
[1733116024376,0.0002,96940.0,96934.0,1.45140398]
[1733116024576,0.0002,96940.0,96934.0,1.48258918]
[1733116025076,0.0002,96940.0,96934.0,1.49723347]
[1733116025281,0.0002,96940.0,96934.0,1.46604827]
[1733116025494,0.0002,96940.0,96934.0,1.49723347]
[1733116026341,0.0002,96940.0,96934.0,1.46604827]
[1733116026566,0.0002,96940.0,96934.0,1.36604827]
[1733116027398,0.0002,96940.0,96934.0,1.26604827]
[1733116027569,0.0002,96940.0,96934.0,1.36604827]
[1733116027799,0.0002,96940.0,96934.0,1.46604827]
[1733116032541,0.0002,96940.0,96939.0,0.09123377]
[1733116032752,0.0002,96940.0,96939.0,1.10221954]
[1733116032929,0.0002,96940.0,96939.0,1.10039398]
[1733116033160,0.0017304,96947.0,96939.0,1.10039398]
[1733116033384,0.00143781,96952.0,96940.0,0.10467078]
[1733116033818,0.00143781,96952.0,96940.0,0.80467078]
[1733116034048,0.00143781,96952.0,96947.0,0.206297]
[1733116034258,0.00143781,96952.0,96948.0,0.10284521]
[1733116034725,0.00143781,96952.0,96948.0,0.80284521]
[1733116035616,0.00143781,96952.0,96948.0,0.81184521]
[1733116035873,0.00143781,96952.0,96948.0,1.01814021]
[1733116036091,0.00143781,96952.0,96951.0,0.09123377]
[1733116036304,0.00143781,96952.0,96951.0,0.19590445]
[1733116036531,0.00143781,96952.0,96951.0,0.19407898]
[1733116036978,0.00143781,96952.0,96951.0,0.89407898]
[1733116037621,0.00143781,96952.0,96951.0,0.90307898]
[1733116037828,0.00143781,96952.0,96951.0,0.90807898]
[1733116040734,0.00143781,96952.0,96951.0,0.92181269]
[1733116044850,0.00143781,96952.0,96951.0,0.90781269]
[1733116045061,0.00143781,96952.0,96951.0,0.91381269]
[1733116045300,0.00143781,96952.0,96951.0,0.92281269]
[1733116045516,0.00143781,96952.0,96951.0,0.92454089]
[1733116046791,0.00143781,96952.0,96951.0,0.91080718]
[1733116048190,0.0751,96962.0,96951.0,0.91080718]
[1733116048417,0.0751,96962.0,96957.0,0.09123377]
[1733116048635,0.0751,96962.0,96957.0,0.19407898]
[1733116049745,0.00702479,96958.0,96957.0,0.19407898]
[1733116049952,0.00232331,96958.0,96957.0,0.40035598]
[1733116050205,0.00232331,96958.0,96957.0,0.19407898]
[1733116050913,0.00232331,96958.0,96957.0,0.20307898]
[1733116051548,0.00232331,96958.0,96957.0,0.20807898]
[1733116060775,0.00232331,96958.0,96957.0,0.20990427]
[1733116061474,0.00232331,96958.0,96957.0,0.20807898]
[1733116062639,0.00702567,96958.0,96957.0,0.20807898]
[1733116062840,0.00232331,96958.0,96957.0,0.20807898]
[1733116063102,0.00023355,96963.0,96957.0,0.20807898]
[1733116063346,0.00017777,96962.0,96958.0,0.10284521]
[1733116063551,0.0045084,96961.0,96958.0,0.10284521]
[1733116065018,0.0045084,96961.0,96958.0,0.10984521]
[1733116065593,0.00017777,96962.0,96958.0,0.10984521]
[1733116065820,0.0045084,96961.0,96958.0,0.10984521]
[1733116066231,0.00017777,96962.0,96958.0,0.10984521]
[1733116066681,0.0045084,96961.0,96958.0,0.11384521]
[1733116067301,0.0045084,96961.0,96958.0,0.10684521]
[1733116067542,0.00017777,96962.0,96958.0,0.10684521]
[1733116068264,0.0045084,96961.0,96958.0,0.10284521]
[1733116068494,0.0045084,96961.0,96958.0,0.11384521]
[1733116068716,0.00017777,96962.0,96958.0,0.11384521]
[1733116068935,0.0008641,96961.0,96958.0,0.11384521]
[1733116069123,0.0053725,96961.0,96958.0,0.10984521]
[1733116069380,0.0008641,96961.0,96958.0,0.10984521]
[1733116069603,0.0008641,96961.0,96958.0,0.11384521]
[1733116069801,0.0008641,96961.0,96958.0,0.10684521]
[1733116070024,0.0008641,96961.0,96958.0,0.11384521]
[1733116073448,0.00450774,96960.0,96958.0,0.11384521]
[1733116074251,0.00450774,96960.0,96958.0,0.10284521]
[1733116074529,0.00450774,96960.0,96958.0,0.11484521]
[1733116078184,0.206259,96966.0,96958.0,0.11484521]
[1733116078420,0.206259,96966.0,96958.0,0.11502298]
[1733116078651,0.21058221,96965.0,96964.0,0.09123377]
[1733116079309,0.33768221,96965.0,96964.0,0.09123377]
[1733116080427,0.08442321,96965.0,96964.0,0.19407898]
[1733116080684,0.00432321,96965.0,96964.0,0.19907898]
[1733116080903,0.00432321,96965.0,96964.0,0.19407898]
[1733116081124,0.206249,96970.0,96964.0,0.19807898]
[1733116081336,0.00433217,96965.0,96964.0,0.09523377]
[1733116081543,0.206249,96970.0,96969.0,0.09123377]
[1733116081957,0.21058446,96970.0,96969.0,0.09123377]
[1733116083099,0.21058446,96970.0,96969.0,0.09523377]
[1733116083506,0.00433546,96970.0,96969.0,0.09523377]
[1733116083959,0.00433546,96970.0,96969.0,0.10123377]
[1733116087178,0.00433546,96970.0,96969.0,0.20407898]
[1733116087619,0.0759,96978.0,96969.0,0.20007898]
[1733116087847,0.0759,96978.0,96977.0,0.09123377]
[1733116088279,0.206226,96981.0,96977.0,0.09123377]
[1733116089192,0.206226,96981.0,96977.0,0.09723377]
[1733116089621,0.206226,96981.0,96977.0,0.09923377]
[1733116090316,0.206226,96981.0,96977.0,0.09323377]
[1733116090706,0.206226,96981.0,96977.0,0.09723377]
[1733116090933,0.412452,96981.0,96977.0,0.09723377]
[1733116091132,0.206221,96983.0,96982.0,0.09123377]
[1733116092333,0.206221,96983.0,96982.0,0.09423377]
[1733116092741,0.206221,96983.0,96982.0,0.09623377]
[1733116094039,0.21056808,96983.0,96982.0,0.09623377]
[1733116095792,0.00434708,96983.0,96982.0,0.09623377]
[1733116096416,0.20622,96984.0,96982.0,0.09623377]
[1733116096590,0.00434708,96983.0,96982.0,0.09623377]
[1733116097336,0.00434708,96983.0,96982.0,0.09423377]
[1733116097748,0.00434708,96983.0,96982.0,0.09623377]
[1733116098619,0.20556708,96984.0,96982.0,0.09623377]
[1733116098843,0.00415991,96983.0,96982.0,0.09423377]
[1733116099034,0.00415991,96983.0,96982.0,0.09623377]
[1733116099641,0.206218,96985.0,96984.0,0.09123377]
[1733116100849,0.206218,96985.0,96984.0,0.09323377]
[1733116101315,0.206211,96988.0,96987.0,0.09123377]
[1733116103638,0.206211,96988.0,96987.0,0.09223377]
[1733116104246,0.206211,96988.0,96987.0,0.001]
[1733116104247,0.1275,96988.0,96987.0,0.001]
[1733116104482,0.333711,96988.0,96987.0,0.001]
[1733116104902,0.206236,96976.0,96975.0,0.09123377]
[1733116105142,0.286436,96976.0,96975.0,0.09123377]
[1733116105778,0.206247,96971.0,96970.0,0.09123377]
[1733116106013,0.206259,96965.0,96964.0,0.09123377]
[1733116106221,0.206259,96965.0,96958.0,0.00190577]
[1733116106222,0.21041431,96965.0,96963.0,0.09296177]
[1733116106458,0.0803,96964.0,96963.0,0.09296177]
[1733116106895,0.08445465,96964.0,96963.0,0.09296177]
[1733116107607,0.08445465,96964.0,96963.0,0.09896177]
[1733116107822,0.00415465,96964.0,96963.0,0.09296177]
[1733116108022,0.00415465,96964.0,96963.0,0.10396177]
[1733116110238,0.04915465,96964.0,96963.0,0.10396177]
[1733116110434,0.04915465,96964.0,96963.0,0.09996177]
[1733116110837,0.04915465,96964.0,96963.0,0.09596177]
[1733116111047,0.04915465,96964.0,96963.0,0.10196177]
[1733116111766,0.04915465,96964.0,96963.0,0.09896177]
[1733116112605,0.12485465,96964.0,96963.0,0.09896177]
[1733116113249,0.12485465,96964.0,96963.0,0.09496177]
[1733116113658,0.12485465,96964.0,96963.0,0.09896177]
[1733116114739,0.00415465,96964.0,96963.0,0.09896177]
[1733116114941,0.00415465,96964.0,96963.0,0.007728]
[1733116118887,0.00415465,96964.0,96963.0,0.003728]
[1733116119121,0.00415465,96964.0,96963.0,0.006728]
[1733116119842,0.00415465,96964.0,96963.0,0.001728]
[1733116120053,0.00415465,96964.0,96963.0,0.003728]
[1733116120259,0.00415465,96964.0,96963.0,0.006728]
[1733116120494,0.00415465,96964.0,96963.0,0.001728]
[1733116120757,0.00415465,96964.0,96963.0,0.004728]
[1733116120962,0.00415465,96964.0,96963.0,0.006728]
[1733116121426,0.00415465,96964.0,96963.0,0.004728]
[1733116122585,0.00415465,96964.0,96963.0,0.001728]
[1733116122810,0.00415465,96964.0,96963.0,0.003728]
[1733116123282,0.00415465,96964.0,96963.0,0.001728]
[1733116123540,0.00415465,96964.0,96963.0,0.005728]
[1733116123770,0.00415465,96964.0,96963.0,0.007728]
[1733116124242,0.00415465,96964.0,96963.0,0.005728]
[1733116125172,0.00415465,96964.0,96963.0,0.007728]
[1733116125398,0.00415465,96964.0,96963.0,0.003728]
[1733116125642,0.00415465,96964.0,96963.0,0.007728]
[1733116126109,0.00415465,96964.0,96963.0,0.003728]
[1733116126335,0.00415465,96964.0,96963.0,0.005728]
[1733116126564,0.00415465,96964.0,96963.0,0.003728]
[1733116126793,0.00415465,96964.0,96963.0,0.008728]
[1733116127279,0.00415465,96964.0,96963.0,0.006728]
[1733116127511,0.00415465,96964.0,96963.0,0.009728]
[1733116128489,0.00415465,96964.0,96963.0,0.10096177]
[1733116128946,0.206257,96967.0,96963.0,0.10096177]
[1733116129172,0.00398973,96964.0,96963.0,0.10096177]
[1733116129403,0.206257,96967.0,96963.0,0.10096177]
[1733116129626,0.0039769,96964.0,96963.0,0.10096177]
[1733116129852,0.00397626,96964.0,96963.0,0.10096177]
[1733116130100,0.412514,96967.0,96963.0,0.09796177]
[1733116130333,0.00457215,96964.0,96963.0,0.09796177]
[1733116130566,0.01400283,96974.0,96973.0,0.09123377]
[1733116131057,0.412476,96976.0,96973.0,0.09123377]
[1733116132612,0.412476,96976.0,96973.0,0.09423377]
[1733116132832,0.412476,96976.0,96973.0,0.09123377]
[1733116133272,0.412476,96976.0,96973.0,0.09223377]
[1733116133501,0.412476,96976.0,96973.0,0.09123377]
[1733116133732,0.206259,96965.0,96964.0,0.09123377]
[1733116135126,0.206255,96968.0,96964.0,0.09123377]
[1733116135360,0.41251,96968.0,96964.0,0.09123377]
[1733116135571,0.41251,96968.0,96964.0,0.09623377]
[1733116136012,0.41251,96968.0,96964.0,0.09123377]
[1733116136316,0.41251,96968.0,96964.0,0.09923377]
[1733116136540,0.41251,96968.0,96967.0,0.09123377]
[1733116136759,0.41251,96968.0,96964.0,0.09723377]
[1733116136984,0.41251,96968.0,96964.0,0.006]
[1733116137203,0.41251,96968.0,96964.0,0.01]
[1733116137418,0.41251,96968.0,96964.0,0.10123377]
[1733116137885,0.41251,96968.0,96964.0,0.09723377]
[1733116138119,0.03,96965.0,96964.0,0.10123377]
[1733116138349,0.03,96965.0,96964.0,0.09523377]
[1733116138569,0.41251,96968.0,96967.0,0.006]
[1733116139037,0.206262,96964.0,96963.0,0.09296177]
[1733116139244,0.206262,96964.0,96963.0,0.001728]
[1733116139448,0.2108365,96964.0,96963.0,0.01191587]
[1733116140978,0.2926365,96964.0,96963.0,0.01191587]
[1733116141506,0.3425365,96964.0,96963.0,0.001728]
[1733116141920,0.3425365,96964.0,96963.0,0.004728]
[1733116142073,0.3425365,96964.0,96963.0,0.010728]
[1733116142276,0.3425365,96964.0,96963.0,0.004728]
[1733116142703,0.3425365,96964.0,96963.0,0.007728]
[1733116142948,0.3425365,96964.0,96963.0,0.004728]
[1733116143311,0.3425365,96964.0,96963.0,0.001728]
[1733116143666,0.2108365,96964.0,96963.0,0.003728]
[1733116144109,0.2108365,96964.0,96963.0,0.09296177]
[1733116144970,0.2108365,96964.0,96963.0,0.002728]
[1733116145365,0.2108365,96964.0,96963.0,0.003728]
[1733116145824,0.3333365,96964.0,96963.0,0.002728]
[1733116146040,0.3333365,96964.0,96963.0,0.005728]
[1733116146477,0.3333365,96964.0,96963.0,0.004728]
[1733116146912,0.3333365,96964.0,96963.0,0.007728]
[1733116147367,0.3333365,96964.0,96963.0,0.001728]
[1733116148847,0.43618171,96964.0,96963.0,0.001728]
[1733116149298,0.45918171,96964.0,96963.0,0.001728]
[1733116150395,0.46794794,96964.0,96963.0,0.001728]
[1733116150616,0.352172,96959.0,96958.0,0.00190577]
[1733116150852,0.46834317,96959.0,96958.0,0.00190577]
[1733116152940,0.45957694,96959.0,96958.0,0.00190577]
[1733116153543,0.56066366,96959.0,96958.0,0.00190577]
[1733116153778,0.56942989,96959.0,96958.0,0.00190577]
[1733116154878,0.58338212,96959.0,96958.0,0.00190577]
[1733116155082,0.57461589,96959.0,96958.0,0.00190577]
[1733116155733,0.34768396,96959.0,96958.0,0.00190577]
[1733116159489,0.30058396,96959.0,96958.0,0.00190577]
[1733116167662,0.40342917,96959.0,96958.0,0.00190577]
[1733116167867,0.44922917,96959.0,96958.0,0.00190577]
[1733116169639,0.4809954,96959.0,96958.0,0.00190577]
[1733116171056,0.58334734,96959.0,96958.0,0.00190577]
[1733116172936,0.68334734,96959.0,96958.0,0.00190577]
[1733116174651,0.58334734,96959.0,96958.0,0.00190577]
[1733116179522,0.4809954,96959.0,96958.0,0.00190577]
[1733116180178,0.4351954,96959.0,96958.0,0.00190577]
[1733116180571,0.22478396,96959.0,96958.0,0.00190577]
[1733116180858,0.21083173,96959.0,96958.0,0.05010577]
[1733116189469,0.00455973,96959.0,96958.0,0.05010577]
[1733116189681,0.00455973,96959.0,96958.0,0.14133954]
[1733116189892,0.206266,96962.0,96958.0,0.14133954]
[1733116190100,0.0008655,96963.0,96958.0,0.14133954]
[1733116190310,0.00433577,96962.0,96959.0,0.0472]
[1733116192220,0.206268,96961.0,96959.0,0.0472]
[1733116192686,0.00433343,96960.0,96959.0,0.0502]
[1733116192909,0.00433343,96960.0,96959.0,0.0552]
[1733116193132,0.00433343,96960.0,96959.0,0.0522]
[1733116193355,0.00433343,96960.0,96959.0,0.0502]
[1733116193592,0.00433343,96960.0,96959.0,0.0552]
[1733116193823,0.00433343,96960.0,96959.0,0.0502]
[1733116195161,0.00433343,96960.0,96959.0,0.0532]
[1733116195570,0.00433343,96960.0,96959.0,0.0562]
[1733116202188,0.00433631,96960.0,96959.0,0.0562]
[1733116205430,0.00433631,96960.0,96959.0,0.14743377]
[1733116206469,0.00433631,96960.0,96959.0,0.009]
[1733116212147,0.08223631,96960.0,96959.0,0.009]
[1733116213095,0.08223631,96960.0,96959.0,0.0077306]
[1733116213547,0.08223631,96960.0,96959.0,0.0087306]
[1733116214471,0.08223631,96960.0,96959.0,0.0027306]
[1733116214695,0.08223631,96960.0,96959.0,0.0037306]
[1733116214931,0.08223631,96960.0,96959.0,0.0027306]
[1733116215611,0.10322794,96960.0,96959.0,0.0017306]
[1733116216078,0.02532794,96960.0,96959.0,0.0017306]
[1733116217467,0.00433631,96960.0,96959.0,0.0017306]
[1733116241194,0.00433631,96960.0,96959.0,0.16916437]
[1733116242332,0.00433631,96960.0,96959.0,0.21826437]
[1733116244682,0.00405793,96960.0,96959.0,0.21826437]
[1733116244845,0.0045911,96960.0,96959.0,0.21826437]
[1733116245054,0.0045911,96960.0,96959.0,0.22826437]
[1733116245409,0.0045911,96960.0,96959.0,0.22226437]
[1733116245589,0.0045911,96960.0,96959.0,0.22426437]
[1733116247149,0.0045911,96960.0,96959.0,0.22826437]
[1733116250389,0.0045911,96960.0,96959.0,0.22426437]
[1733116250821,0.0045911,96960.0,96959.0,0.22226437]
[1733116251224,0.0045911,96960.0,96959.0,0.14906437]
[1733116251628,0.0045911,96960.0,96959.0,0.14606437]
[1733116251830,0.0045911,96960.0,96959.0,0.15306437]
[1733116254850,0.0045911,96960.0,96959.0,0.0127306]
[1733116255467,0.0045911,96960.0,96959.0,0.10396437]
[1733116256733,0.0045911,96960.0,96959.0,0.0127306]
[1733116256936,0.0045911,96960.0,96959.0,0.10396437]
[1733116257228,0.0045911,96960.0,96959.0,0.0127306]
[1733116257440,0.0045911,96960.0,96959.0,0.10396437]
[1733116259074,0.0045911,96960.0,96959.0,0.0127306]
[1733116259281,0.0045911,96960.0,96959.0,0.10396437]
[1733116265887,0.0045911,96960.0,96959.0,0.0127306]
[1733116266120,0.0045911,96960.0,96959.0,0.02497299]
[1733116266811,0.0045911,96960.0,96959.0,0.07347299]
[1733116267039,0.0045911,96960.0,96959.0,0.16470676]
[1733116267480,0.0045911,96960.0,96959.0,0.16070676]
[1733116267692,0.0045911,96960.0,96959.0,0.15370676]
[1733116267912,0.0045911,96960.0,96959.0,0.15870676]
[1733116268116,0.0045911,96960.0,96959.0,0.15570676]
[1733116268330,0.0045911,96960.0,96959.0,0.15370676]
[1733116268541,0.0045911,96960.0,96959.0,0.15770676]
[1733116268746,0.0045911,96960.0,96959.0,0.15970676]
[1733116269627,0.0045911,96960.0,96959.0,0.11120676]
[1733116269841,0.0045911,96960.0,96959.0,0.01997299]
[1733116273185,0.0045911,96960.0,96959.0,0.0077306]
[1733116283534,0.0045911,96960.0,96959.0,0.14666437]
[1733116287498,0.0045911,96960.0,96959.0,0.09896437]
[1733116291823,0.0045911,96960.0,96959.0,0.09696437]
[1733116292160,0.0045911,96960.0,96959.0,0.09996437]
[1733116293219,0.0045911,96960.0,96959.0,0.09596437]
[1733116293835,0.0045911,96960.0,96959.0,0.10096437]
[1733116295529,0.0008653,96961.0,96959.0,0.10096437]
[1733116295970,0.00459868,96960.0,96959.0,0.10096437]
[1733116296178,0.0008653,96961.0,96959.0,0.10096437]
[1733116296400,0.00459868,96960.0,96959.0,0.10096437]
[1733116296630,0.0008653,96961.0,96959.0,0.10096437]
[1733116296824,0.0008653,96961.0,96959.0,0.09596437]
[1733116297217,0.00459868,96960.0,96959.0,0.09696437]
[1733116297629,0.0008653,96961.0,96959.0,0.09896437]
[1733116298067,0.00459868,96960.0,96959.0,0.09296437]
[1733116298283,0.00459868,96960.0,96959.0,0.09896437]
[1733116298485,0.00459868,96960.0,96959.0,0.10296437]
[1733116298901,0.00459868,96960.0,96959.0,0.09896437]
[1733116299137,0.00459868,96960.0,96959.0,0.10296437]
[1733116299842,0.00459868,96960.0,96959.0,0.09696437]
[1733116300477,0.0008653,96961.0,96959.0,0.09896437]
[1733116300712,0.00459932,96960.0,96959.0,0.10296437]
[1733116301530,0.0008653,96961.0,96959.0,0.09896437]
[1733116301762,0.0008653,96961.0,96959.0,0.10296437]
[1733116301964,0.00459868,96960.0,96959.0,0.10296437]
[1733116302162,0.00459868,96960.0,96959.0,0.09896437]
[1733116302389,0.0008653,96961.0,96959.0,0.09896437]
[1733116302835,0.00459868,96960.0,96959.0,0.09896437]
[1733116303276,0.0008653,96961.0,96959.0,0.09896437]
[1733116303489,0.00459932,96960.0,96959.0,0.10296437]
[1733116303699,0.00459932,96960.0,96959.0,0.09696437]
[1733116304139,0.00459932,96960.0,96959.0,0.10296437]
[1733116304389,0.00459932,96960.0,96959.0,0.09296437]
[1733116304596,0.00459932,96960.0,96959.0,0.09696437]
[1733116304794,0.00459932,96960.0,96959.0,0.10296437]
[1733116304998,0.0008653,96961.0,96959.0,0.09896437]
[1733116305402,0.00459868,96960.0,96959.0,0.10296437]
[1733116305809,0.0008653,96961.0,96959.0,0.10296437]
[1733116306250,0.00459868,96960.0,96959.0,0.10296437]
[1733116306673,0.00459868,96960.0,96959.0,0.09696437]
[1733116306882,0.00459868,96960.0,96959.0,0.10296437]
[1733116307101,0.00459868,96960.0,96959.0,0.09296437]
[1733116307505,0.00459868,96960.0,96959.0,0.10296437]
[1733116307923,0.00459868,96960.0,96959.0,0.09896437]
[1733116308392,0.00459868,96960.0,96959.0,0.10296437]
[1733116308600,0.0008653,96961.0,96959.0,0.10296437]
[1733116309007,0.00459868,96960.0,96959.0,0.10296437]
[1733116309312,0.0008653,96961.0,96959.0,0.10296437]
[1733116309772,0.00459868,96960.0,96959.0,0.09696437]
[1733116309989,0.0008653,96961.0,96959.0,0.09696437]
[1733116310202,0.0008653,96961.0,96959.0,0.09896437]
[1733116310399,0.00440707,96960.0,96959.0,0.09896437]
[1733116310607,0.00440707,96960.0,96959.0,0.10296437]
[1733116310811,0.0008653,96961.0,96959.0,0.10296437]
[1733116311459,0.0008653,96961.0,96959.0,0.09696437]
[1733116311460,0.00440707,96960.0,96959.0,0.09696437]
[1733116311677,0.00440707,96960.0,96959.0,0.10296437]
[1733116311880,0.0008653,96961.0,96959.0,0.09896437]
[1733116312136,0.0008653,96961.0,96959.0,0.10296437]
[1733116312337,0.0008653,96961.0,96960.0,0.52494898]
[1733116312549,0.0008655,96963.0,96962.0,0.09123377]
[1733116312762,0.0008655,96963.0,96962.0,0.32050421]
[1733116313083,0.0008655,96963.0,96962.0,0.31867898]
[1733116313856,0.0008655,96963.0,96962.0,0.32367898]
[1733116314062,0.0008655,96963.0,96962.0,0.46867898]
[1733116314267,0.0008655,96963.0,96962.0,0.47767898]
[1733116314472,0.0008655,96983.0,96962.0,0.35307898]
[1733116314690,0.0008655,96983.0,96978.0,0.206232]
[1733116314911,0.00419879,96982.0,96978.0,0.30907721]
[1733116315112,0.0008655,96983.0,96978.0,0.30907721]
[1733116315457,0.00422627,96982.0,96978.0,0.30907721]
[1733116315922,0.0008655,96983.0,96978.0,0.30907721]
[1733116316135,0.00422563,96981.0,96978.0,0.30907721]
[1733116316354,0.00422627,96982.0,96978.0,0.30907721]
[1733116316568,0.0008655,96983.0,96978.0,0.30907721]
[1733116316779,0.0008655,96983.0,96978.0,0.31407721]
[1733116317023,0.00423027,96982.0,96978.0,0.31707721]
[1733116317253,0.00423027,96982.0,96978.0,0.31207721]
[1733116317490,0.0008655,96983.0,96978.0,0.31507721]
[1733116317708,0.0008655,96983.0,96978.0,0.10584521]
[1733116317923,0.00423089,96982.0,96978.0,0.11084521]
[1733116318133,0.00423089,96982.0,96978.0,0.31407521]
[1733116318358,0.00423089,96982.0,96978.0,0.30907521]
[1733116318602,0.0008655,96983.0,96981.0,0.206224]
[1733116318832,0.0008655,96983.0,96978.0,0.31807521]
[1733116319043,0.0008655,96983.0,96978.0,0.52430721]
[1733116319281,0.0008655,96983.0,96978.0,0.11184521]
[1733116319491,0.0008655,96983.0,96982.0,0.09123377]
[1733116319753,0.0008655,96983.0,96982.0,0.19407898]
[1733116319965,0.0008655,96983.0,96982.0,0.24097898]
[1733116320828,0.0008655,96983.0,96982.0,0.24597898]
[1733116321046,0.0008655,96983.0,96982.0,0.24897898]
[1733116321548,0.0008655,96983.0,96982.0,0.24397898]
[1733116321754,0.0008655,96983.0,96982.0,0.24097898]
[1733116321936,0.0008655,96983.0,96982.0,0.24997898]
[1733116322901,0.0008655,96983.0,96982.0,0.25697898]
[1733116323528,0.0008655,96983.0,96982.0,0.33617898]
[1733116325162,0.0008649,96989.0,96983.0,0.29745477]
[1733116325388,0.0008649,96989.0,96983.0,0.40029998]
[1733116326050,0.0008649,96989.0,96983.0,0.44709998]
[1733116326272,0.0008649,96989.0,96983.0,0.68449998]
[1733116327641,0.0008649,96989.0,96983.0,0.69349998]
[1733116329908,0.0008649,96989.0,96983.0,0.68749998]
[1733116330138,0.0008649,96989.0,96983.0,0.69449998]
[1733116330347,0.0008649,96989.0,96983.0,0.68549998]
[1733116330780,0.0008649,96989.0,96983.0,0.68749998]
[1733116331020,0.0008649,96989.0,96983.0,0.70154852]
[1733116331218,0.0008649,96989.0,96983.0,0.69254852]
[1733116331886,0.0008649,96989.0,96983.0,0.69354852]
[1733116332944,0.0008649,96989.0,96983.0,0.69454852]
[1733116337509,0.0008649,96989.0,96983.0,0.68049998]
[1733116338605,0.2029232,96997.0,96983.0,0.68049998]
[1733116338840,0.2029232,96997.0,96985.0,0.206217]
[1733116339040,0.00656481,96996.0,96986.0,0.10466998]
[1733116339247,0.206196,96995.0,96986.0,0.10466998]
[1733116339684,0.00651549,96994.0,96986.0,0.10466998]
[1733116339963,0.2029232,96997.0,96986.0,0.10466998]
[1733116340173,0.00652763,96993.0,96986.0,0.10466998]
[1733116340427,0.2029232,96997.0,96986.0,0.10466998]
[1733116340649,0.2046536,96997.0,96986.0,0.10466998]
[1733116340852,0.00653115,96996.0,96986.0,0.11366998]
[1733116341055,0.00653115,96996.0,96986.0,0.10466998]
[1733116341661,0.206196,96995.0,96986.0,0.11366998]
[1733116342119,0.00652894,96994.0,96986.0,0.11366998]
[1733116342329,0.206194,96996.0,96986.0,0.11366998]
[1733116342543,0.00652784,96993.0,96986.0,0.11366998]
[1733116342750,0.206194,96996.0,96986.0,0.11866998]
[1733116342969,0.00575119,96992.0,96986.0,0.10966998]
[1733116343174,0.206194,96996.0,96986.0,0.10966998]
[1733116343175,0.206194,96996.0,96986.0,0.10466998]
[1733116343372,0.00575116,96991.0,96986.0,0.11266998]
[1733116343612,0.206202,96993.0,96986.0,0.11766998]
[1733116343820,0.00575019,96990.0,96986.0,0.11766998]
[1733116344232,0.206194,96996.0,96986.0,0.11766998]
[1733116344464,0.00574923,96989.0,96986.0,0.11766998]
[1733116344684,0.206194,96996.0,96986.0,0.10966998]
[1733116344910,0.00653005,96995.0,96986.0,0.11866998]
[1733116345125,0.206194,96996.0,96986.0,0.11866998]
[1733116345342,0.00653005,96995.0,96986.0,0.11866998]
[1733116345786,0.206198,96994.0,96986.0,0.11366998]
[1733116346277,0.00653005,96995.0,96986.0,0.11366998]
[1733116346278,0.00652784,96993.0,96986.0,0.11066998]
[1733116346478,0.00652784,96993.0,96986.0,0.11866998]
[1733116346723,0.00652784,96993.0,96986.0,0.10466998]
[1733116346946,0.00652674,96992.0,96986.0,0.10966998]
[1733116347162,0.206196,96995.0,96986.0,0.11866998]
[1733116347369,0.00652563,96991.0,96986.0,0.10966998]
[1733116347616,0.206196,96995.0,96986.0,0.11866998]
[1733116347818,0.00652453,96990.0,96986.0,0.10966998]
[1733116348028,0.206196,96995.0,96986.0,0.10966998]
[1733116348237,0.00652343,96989.0,96986.0,0.11866998]
[1733116348444,0.206196,96995.0,96986.0,0.11866998]
[1733116348445,0.206196,96995.0,96986.0,0.11366998]
[1733116348651,0.00652233,96988.0,96986.0,0.11966998]
[1733116348857,0.206196,96995.0,96986.0,0.11966998]
[1733116349272,0.00652894,96994.0,96986.0,0.11366998]
[1733116349478,0.00652894,96994.0,96986.0,0.11166998]
[1733116349858,0.00652894,96994.0,96986.0,0.12066998]
[1733116350206,0.00652894,96994.0,96986.0,0.10466998]
[1733116350545,0.00652894,96994.0,96986.0,0.11866998]
[1733116351811,0.00652894,96994.0,96986.0,0.11366998]
[1733116352047,0.00652894,96994.0,96986.0,0.11866998]
[1733116352490,0.2062,96993.0,96986.0,0.11866998]
[1733116352701,0.21272794,96994.0,96986.0,0.11866998]
[1733116353177,0.0065583,96993.0,96986.0,0.11866998]
[1733116353390,0.0065583,96993.0,96986.0,0.11366998]
[1733116353627,0.206202,96992.0,96986.0,0.11366998]
[1733116353842,0.0065583,96993.0,96986.0,0.1332462]
[1733116354055,0.207929,96994.0,96986.0,0.1332462]
[1733116354273,0.0065583,96992.0,96986.0,0.1242462]
[1733116354480,0.207929,96994.0,96986.0,0.1332462]
[1733116354729,0.00656225,96993.0,96986.0,0.1332462]
[1733116355181,0.00656225,96993.0,96986.0,0.1272462]
[1733116355399,0.00656225,96993.0,96986.0,0.1332462]
[1733116355824,0.00656225,96993.0,96986.0,0.1182462]
[1733116356033,0.00656225,96993.0,96986.0,0.1272462]
[1733116356220,0.00656225,96993.0,96986.0,0.1242462]
[1733116356672,0.00656225,96993.0,96986.0,0.1332462]
[1733116357549,0.19128138,96994.0,96986.0,0.1332462]
[1733116357773,0.00606069,96992.0,96986.0,0.1332462]
[1733116357980,0.0060618,96993.0,96986.0,0.1332462]
[1733116358203,0.00608209,96991.0,96986.0,0.1332462]
[1733116358455,0.00606069,96992.0,96986.0,0.1332462]
[1733116358678,0.00609226,96990.0,96986.0,0.1272462]
[1733116358904,0.00173,96994.0,96986.0,0.1322462]
[1733116359153,0.2062,96993.0,96986.0,0.1322462]
[1733116359365,0.2062,96993.0,96986.0,0.1182462]
[1733116359602,0.00609621,96992.0,96986.0,0.1332462]
[1733116360024,0.00609621,96992.0,96986.0,0.1242462]
[1733116360252,0.00609621,96992.0,96986.0,0.1332462]
[1733116360463,0.00609621,96992.0,96986.0,0.1242462]